bitfinex/quotes_BTCUSD_20250618
["timestamp","ask_amount","ask_price","bid_price","bid_amount"]
[1750277464898,0.90301517,103910.0,103900.0,0.1680725]
[1750277465119,0.90301517,103910.0,103900.0,0.1640725]
[1750277465508,0.87221517,103910.0,103900.0,0.1630725]
[1750277465720,0.87221517,103910.0,103900.0,0.1640725]
[1750277466553,0.57101759,103910.0,103900.0,0.35656528]
[1750277466807,0.89146147,103910.0,103900.0,0.36618982]
[1750277467036,0.89146147,103910.0,103900.0,0.35656528]
[1750277467260,0.88183841,103910.0,103900.0,0.37581427]
[1750277467486,0.88183841,103910.0,103900.0,0.36618982]
[1750277467730,0.87221507,103910.0,103900.0,0.1640725]
[1750277468325,0.87221507,103910.0,103900.0,0.36618991]
[1750277468538,0.87221507,103910.0,103900.0,0.37581427]
[1750277468745,0.87221507,103910.0,103900.0,0.36618991]
[1750277468957,0.86259155,103910.0,103900.0,0.0014725]
[1750277469197,0.89539155,103910.0,103900.0,0.1640325]
[1750277470092,0.86259155,103910.0,103900.0,0.1640325]
[1750277470769,0.89539155,103910.0,103900.0,0.1640325]
[1750277470987,0.86259155,103910.0,103900.0,0.1640325]
[1750277471268,0.86259155,103910.0,103900.0,0.0014725]
[1750277471445,0.89539155,103910.0,103900.0,0.1640325]
[1750277472035,0.92729155,103910.0,103900.0,0.0014725]
[1750277472248,0.89539155,103910.0,103900.0,0.1640325]
[1750277472649,0.89539155,103910.0,103900.0,0.0014725]
[1750277475550,0.86259155,103910.0,103900.0,0.0014725]
[1750277481773,0.36892,103910.0,103900.0,0.38357983]
[1750277481996,0.34,103910.0,103900.0,0.38357983]
[1750277482657,0.65082027,103910.0,103900.0,0.38357983]
[1750277482874,0.6411973,103910.0,103900.0,0.38357983]
[1750277483085,0.66044351,103910.0,103900.0,0.38357983]
[1750277483302,0.66044342,103910.0,103900.0,0.38357983]
[1750277483733,0.6411973,103910.0,103900.0,0.38357983]
[1750277484582,0.6411973,103910.0,103900.0,0.68117983]
[1750277485631,0.65082036,103910.0,103900.0,0.68117983]
[1750277486460,0.6411973,103910.0,103900.0,0.68117983]
[1750277486690,0.65082027,103910.0,103900.0,0.68117983]
[1750277486921,0.66044342,103910.0,103900.0,0.68117983]
[1750277487323,0.31082027,103910.0,103900.0,0.68117983]
[1750277487745,0.32044333,103910.0,103900.0,0.68117983]
[1750277488146,0.33006667,103910.0,103900.0,0.68117983]
[1750277488359,0.32044333,103910.0,103900.0,0.68117983]
[1750277488564,0.33006667,103910.0,103900.0,0.68117983]
[1750277488776,0.32044333,103910.0,103900.0,0.68117983]
[1750277489006,0.33006657,103910.0,103900.0,0.68117983]
[1750277489635,0.33969,103910.0,103900.0,0.68117983]
[1750277489844,0.33006657,103910.0,103900.0,0.68117983]
[1750277490059,0.33006648,103910.0,103900.0,0.68117983]
[1750277490720,0.67968982,103910.0,103900.0,0.68117983]
[1750277491146,0.84329489,103910.0,103900.0,0.45981426]
[1750277491371,0.84329489,103910.0,103900.0,0.4615125]
[1750277491372,0.85291841,103910.0,103900.0,0.4615125]
[1750277492427,0.55172111,103910.0,103900.0,0.4615125]
[1750277492659,0.85291841,103910.0,103900.0,0.4615125]
[1750277493293,0.85291841,103910.0,103900.0,0.69582973]
[1750277493497,0.84329507,103910.0,103900.0,0.5257125]
[1750277493720,0.83367155,103910.0,103900.0,0.5257125]
[1750277494558,0.83367155,103910.0,103900.0,0.4937125]
[1750277494784,0.83367155,103910.0,103900.0,0.4615125]
[1750277496538,0.83367155,103910.0,103900.0,0.1639125]
[1750277497132,0.83367155,103910.0,103900.0,0.0014725]
[1750277497337,0.89717155,103910.0,103900.0,0.1638725]
[1750277497540,0.92609055,103910.0,103900.0,0.1638725]
[1750277498199,1.22728785,103910.0,103900.0,0.0014725]
[1750277498620,1.38964785,103910.0,103900.0,0.0014725]
[1750277498827,0.23463669,103890.0,103880.0,0.0407732]
[1750277499033,0.83703129,103890.0,103880.0,0.0407732]
[1750277500061,0.83703129,103890.0,103880.0,0.0427732]
[1750277500277,1.17703129,103890.0,103880.0,0.0427732]
[1750277500488,1.20763129,103890.0,103880.0,0.0427732]
[1750277501087,1.20763129,103890.0,103880.0,0.0447732]
[1750277501631,1.36999129,103890.0,103880.0,0.0447732]
[1750277502273,1.36999129,103890.0,103880.0,0.0407732]
[1750277502683,1.37299129,103890.0,103880.0,0.0407732]
[1750277502908,1.13347667,103890.0,103880.0,0.0407732]
[1750277503096,1.32898798,103890.0,103880.0,0.0407732]
[1750277503352,1.33861336,103890.0,103880.0,0.0407732]
[1750277504454,1.34061336,103890.0,103880.0,0.0407732]
[1750277505891,1.36954136,103890.0,103880.0,0.0407732]
[1750277507779,1.38454136,103890.0,103880.0,0.0407732]
[1750277511427,1.36954136,103890.0,103880.0,0.0407732]
[1750277517248,1.36954136,103890.0,103880.0,0.02601322]
[1750277517900,1.46578312,103890.0,103880.0,0.00661322]
[1750277518124,0.55180255,103870.0,103860.0,0.0626]
[1750277518347,0.85299985,103870.0,103860.0,0.0626]
[1750277518772,0.88192985,103870.0,103860.0,0.0626]
[1750277519237,0.88192985,103870.0,103860.0,0.0636]
[1750277519497,0.88192985,103870.0,103860.0,0.06364723]
[1750277519886,0.92081568,103870.0,103860.0,0.06364723]
[1750277520955,1.22201298,103870.0,103860.0,0.06364723]
[1750277521162,1.22201298,103870.0,103860.0,0.03194723]
[1750277521786,1.38421298,103870.0,103860.0,0.00104723]
[1750277522053,0.54221453,103850.0,103840.0,0.0321]
[1750277522256,0.84341183,103850.0,103840.0,0.03214727]
[1750277523366,0.85304045,103850.0,103840.0,0.24401138]
[1750277523569,0.86266972,103850.0,103840.0,0.23638137]
[1750277523778,0.86266972,103850.0,103840.0,0.23638128]
[1750277523985,0.66045444,103850.0,103840.0,0.26527057]
[1750277524196,0.67008343,103850.0,103840.0,0.25764102]
[1750277524405,0.67008334,103850.0,103840.0,0.26727057]
[1750277524814,0.88192705,103850.0,103840.0,0.25764102]
[1750277525021,0.88192705,103850.0,103840.0,0.29957075]
[1750277525229,0.67971233,103850.0,103840.0,0.3092003]
[1750277525849,0.68934141,103850.0,103840.0,0.3092003]
[1750277526257,0.67971233,103850.0,103840.0,0.3092003]
[1750277526582,0.68934141,103850.0,103840.0,0.3092003]
[1750277527246,0.67971233,103850.0,103840.0,0.3092003]
[1750277527518,0.67008334,103850.0,103840.0,0.3092003]
[1750277527722,0.67971242,103850.0,103840.0,0.3092003]
[1750277527889,0.67008334,103850.0,103840.0,0.3092003]
[1750277528070,0.67971242,103850.0,103840.0,0.3092003]
[1750277528279,0.67008334,103850.0,103840.0,0.3092003]
[1750277528512,0.6411973,103850.0,103840.0,0.40544206]
[1750277528686,0.34,103850.0,103840.0,0.40544206]
[1750277528897,0.36901313,103870.0,103860.0,0.28605082]
[1750277529253,0.36901313,103870.0,103860.0,0.54445258]
[1750277529254,0.71863971,103870.0,103860.0,0.54445258]
[1750277529467,0.38826638,103870.0,103860.0,0.54445258]
[1750277529680,0.72826638,103870.0,103860.0,0.54445258]
[1750277529884,0.73789333,103870.0,103860.0,0.54445258]
[1750277530109,0.72926638,103870.0,103860.0,0.54445258]
[1750277530327,0.07081583,103870.0,103860.0,0.54445258]
[1750277530540,0.3527099,103870.0,103860.0,0.54445258]
[1750277530751,0.68308313,103870.0,103860.0,0.54445258]
[1750277530981,0.68208313,103870.0,103860.0,0.54445258]
[1750277531304,0.68008313,103870.0,103860.0,0.54445258]
[1750277532331,0.34008313,103870.0,103860.0,0.54445258]
[1750277532560,0.3011973,103880.0,103870.0,0.2858295]
[1750277532876,0.03854882,103890.0,103880.0,0.28580819]
[1750277533123,0.57101197,103890.0,103880.0,0.53454411]
[1750277533367,0.57101197,103890.0,103880.0,0.55379606]
[1750277533617,0.37850048,103890.0,103880.0,0.5634219]
[1750277533852,0.58063726,103890.0,103880.0,0.5634219]
[1750277534088,1.1830326,103890.0,103880.0,0.5634219]
[1750277534550,1.22365508,103890.0,103880.0,0.5634219]
[1750277535300,1.21403008,103890.0,103880.0,0.54417013]
[1750277536204,1.21403008,103890.0,103880.0,0.55379606]
[1750277536417,1.21503008,103890.0,103880.0,0.5634219]
[1750277537264,1.21503008,103890.0,103880.0,0.54417013]
[1750277538113,1.00326774,103890.0,103880.0,0.55379606]
[1750277538333,1.00326736,103890.0,103880.0,0.5634219]
[1750277538578,1.00326681,103890.0,103880.0,0.5634219]
[1750277538809,0.99364181,103890.0,103880.0,0.5634219]
[1750277539035,0.39124721,103890.0,103880.0,0.5634219]
[1750277539260,0.99364181,103890.0,103880.0,0.5634219]
[1750277539479,1.00326663,103890.0,103880.0,0.5634219]
[1750277539697,0.67289154,103890.0,103880.0,0.5634219]
[1750277540364,0.66326663,103890.0,103880.0,0.5634219]
[1750277540583,0.64401708,103890.0,103880.0,0.5634219]
[1750277541041,0.34281978,103890.0,103880.0,0.5634219]
[1750277541253,0.003,103890.0,103880.0,0.5634219]
[1750277541484,0.003,103890.0,103880.0,0.57796275]
[1750277541703,0.3041973,103890.0,103880.0,0.57796275]
[1750277542813,0.3031973,103890.0,103880.0,0.57796275]
[1750277543033,0.3011973,103890.0,103880.0,0.41584275]
[1750277543260,0.34962297,103910.0,103900.0,0.22136557]
[1750277543480,0.6411973,103910.0,103900.0,0.54300733]
[1750277544366,0.68063687,103910.0,103900.0,0.54300733]
[1750277544792,0.71912984,103910.0,103900.0,0.5526315]
[1750277545225,0.71912984,103910.0,103900.0,0.5546315]
[1750277545438,0.70950632,103910.0,103900.0,0.5546315]
[1750277545868,0.69988289,103910.0,103900.0,0.5546315]
[1750277545994,0.70950623,103910.0,103900.0,0.5546315]
[1750277546221,0.71912975,103910.0,103900.0,0.5546315]
[1750277546458,0.71912966,103910.0,103900.0,0.5546315]
[1750277546869,0.72875318,103910.0,103900.0,0.5546315]
[1750277547084,0.72875393,103910.0,103900.0,0.5546315]
[1750277547292,0.71913031,103910.0,103900.0,0.5566315]
[1750277547740,0.70950688,103910.0,103900.0,0.5566315]
[1750277548106,0.70950679,103910.0,103900.0,0.5566315]
[1750277548330,0.35988336,103910.0,103900.0,0.5566315]
[1750277548769,0.34063687,103910.0,103900.0,0.5566315]
[1750277550099,0.03943957,103910.0,103900.0,0.5566315]
[1750277550317,0.34063687,103910.0,103900.0,0.5566315]
[1750277550534,0.3011973,103910.0,103900.0,0.5566315]
[1750277550961,0.31082017,103910.0,103900.0,0.5566315]
[1750277551168,0.3011973,103910.0,103900.0,0.5566315]
[1750277552920,0.35960741,103920.0,103910.0,0.28674454]
[1750277553130,0.66080471,103920.0,103910.0,0.39260936]
[1750277553343,0.66080462,103920.0,103910.0,0.39260936]
[1750277553553,1.00080462,103920.0,103910.0,0.39260936]
[1750277553767,0.99118174,103920.0,103910.0,0.39260936]
[1750277553983,0.98155961,103920.0,103910.0,0.39260936]
[1750277554196,0.34036231,103920.0,103910.0,0.39260936]
[1750277554670,0.3012473,103920.0,103910.0,0.39260936]
[1750277554896,0.3012473,103920.0,103910.0,0.2963676]
[1750277555310,0.3012473,103920.0,103910.0,0.39260936]
[1750277555752,0.3012473,103920.0,103910.0,0.39460936]
[1750277556395,0.3012473,103920.0,103910.0,0.39760936]
[1750277557758,5e-05,103920.0,103910.0,0.41215021]
[1750277557961,5e-05,103940.0,103930.0,0.29994252]
[1750277558179,5e-05,103940.0,103930.0,0.90270158]
[1750277558399,0.00052221,103940.0,103930.0,0.90270158]
[1750277558671,0.00052221,103940.0,103930.0,1.15270158]
[1750277558901,5e-05,103950.0,103940.0,0.37128038]
[1750277559147,0.00019161,103950.0,103940.0,0.43538038]
[1750277559897,0.00019161,103950.0,103940.0,0.73657768]
[1750277560135,0.00019161,103950.0,103940.0,0.47458165]
[1750277560586,0.00019161,103950.0,103940.0,0.73657768]
[1750277560790,0.00619161,103950.0,103940.0,0.75111853]
[1750277562555,0.00619161,103950.0,103940.0,0.77961419]
[1750277562773,5e-05,103960.0,103950.0,0.28555909]
[1750277562985,5e-05,103960.0,103950.0,0.54356085]
[1750277563445,5e-05,103960.0,103950.0,0.6081017]
[1750277563659,5e-05,103960.0,103950.0,1.209299]
[1750277564103,5e-05,103980.0,103970.0,0.23575738]
[1750277564322,5e-05,103980.0,103970.0,0.60255914]
[1750277566361,0.00405,103980.0,103970.0,0.60255914]
[1750277567734,0.00405,103980.0,103970.0,0.97745681]
[1750277568178,0.00405,103980.0,103970.0,1.27745681]
[1750277568401,0.00405,103980.0,103970.0,0.69739914]
[1750277568621,0.00405,103980.0,103970.0,0.39739914]
[1750277568837,0.00405,103980.0,103970.0,0.60251914]
[1750277569130,5e-05,103980.0,103970.0,0.60251914]
[1750277569347,0.00605,103980.0,103970.0,0.44083914]
[1750277569578,5e-05,103980.0,103970.0,0.60251914]
[1750277570044,0.00405,103980.0,103970.0,0.39739914]
[1750277570283,0.00405,103980.0,103970.0,0.60247914]
[1750277571242,0.37894767,103980.0,103970.0,0.38285829]
[1750277571449,0.97214265,103980.0,103970.0,0.28860494]
[1750277571679,0.34,103960.0,103950.0,0.19240019]
[1750277571897,0.71489767,103960.0,103950.0,0.48876067]
[1750277572321,0.73413463,103960.0,103950.0,0.48876067]
[1750277572532,0.72451601,103960.0,103950.0,0.48876067]
[1750277573259,0.72451601,103960.0,103950.0,0.49176067]
[1750277573489,0.73413453,103960.0,103950.0,0.49176067]
[1750277573725,0.72451601,103960.0,103950.0,0.49172067]
[1750277573955,0.73413463,103960.0,103950.0,0.49172067]
[1750277574186,0.73413453,103960.0,103950.0,0.49172067]
[1750277574679,0.34961834,103960.0,103950.0,0.49172067]
[1750277574932,0.34,103960.0,103950.0,0.49172067]
[1750277575175,0.61503607,103980.0,103970.0,0.20198133]
[1750277575418,0.60541903,103980.0,103970.0,0.37319921]
[1750277575662,0.55163589,103980.0,103970.0,0.38281681]
[1750277575907,0.56125312,103980.0,103970.0,0.38281699]
[1750277576145,0.56120312,103980.0,103970.0,0.39243459]
[1750277576393,0.93610079,103980.0,103970.0,0.39243459]
[1750277576608,0.73413167,103980.0,103970.0,0.37519921]
[1750277576852,0.73413111,103980.0,103970.0,0.36558133]
[1750277577059,0.7533651,103980.0,103970.0,0.39443468]
[1750277577477,0.76298224,103980.0,103970.0,0.39443468]
[1750277577899,0.7533651,103980.0,103970.0,0.39443468]
[1750277578120,0.72451416,103980.0,103970.0,0.39443468]
[1750277578573,0.73413093,103980.0,103970.0,0.39443468]
[1750277578781,0.74374788,103980.0,103970.0,0.39443468]
[1750277578988,0.74374779,103980.0,103970.0,0.39443468]
[1750277579200,0.75336483,103980.0,103970.0,0.38481717]
[1750277579433,0.74374779,103980.0,103970.0,0.39443468]
[1750277579652,0.75336474,103980.0,103970.0,0.39443468]
[1750277579865,0.74374779,103980.0,103970.0,0.39443468]
[1750277580078,0.73413093,103980.0,103970.0,0.39443468]
[1750277580289,0.74374788,103980.0,103970.0,0.39443468]
[1750277580512,0.92647634,103980.0,103970.0,0.35596318]
[1750277580774,0.98155939,103980.0,103970.0,0.20398133]
[1750277581001,0.97194235,103980.0,103970.0,0.1636]
[1750277581428,0.97194235,103980.0,103970.0,0.37519921]
[1750277581634,0.97194235,103980.0,103970.0,0.1636]
[1750277581635,0.98155939,103980.0,103970.0,0.1636]
[1750277581847,0.98155939,103980.0,103970.0,0.20398115]
[1750277582062,0.98155939,103980.0,103970.0,0.36554115]
[1750277582293,0.98155939,103980.0,103970.0,0.37515903]
[1750277582729,0.72451416,103980.0,103970.0,0.39439414]
[1750277582951,0.74374797,103980.0,103970.0,0.39439414]
[1750277583170,0.95532702,103980.0,103970.0,0.38477672]
[1750277583398,0.93609376,103980.0,103970.0,0.37515903]
[1750277583607,0.92647672,103980.0,103970.0,0.37515903]
[1750277584041,0.93543545,103980.0,103970.0,0.37515903]
[1750277584257,0.93543545,103980.0,103970.0,0.38477681]
[1750277584926,0.93543811,103980.0,103970.0,0.38477681]
[1750277585129,0.36819539,103980.0,103970.0,0.39439432]
[1750277585301,0.74309306,103980.0,103970.0,0.39439432]
[1750277585719,0.73347564,103980.0,103970.0,0.39439432]
[1750277586092,0.72385906,103980.0,103970.0,0.55353608]
[1750277586316,0.37489767,103980.0,103970.0,0.55353608]
[1750277586555,0.43331137,103990.0,103980.0,0.28409526]
[1750277586784,0.77280823,103990.0,103980.0,0.38033702]
[1750277586995,0.78242379,103990.0,103980.0,0.38033702]
[1750277587139,0.78242389,103990.0,103980.0,0.38033702]
[1750277587339,0.80165585,103990.0,103980.0,0.38033702]
[1750277587901,1.0215639,103990.0,103980.0,0.32705388]
[1750277588079,0.81962142,103990.0,103980.0,0.33667046]
[1750277588283,0.81000521,103990.0,103980.0,0.33667046]
[1750277588995,0.79204038,103990.0,103980.0,0.33667046]
[1750277589198,0.99498286,103990.0,103980.0,0.31743721]
[1750277589401,1.00433507,103990.0,103980.0,0.46938044]
[1750277590023,0.99471923,103990.0,103980.0,0.46938044]
[1750277590410,0.61084738,103990.0,103980.0,0.47899721]
[1750277590607,0.96778012,103990.0,103980.0,0.47899721]
[1750277590812,0.96778012,103990.0,103980.0,0.31743721]
[1750277591033,0.77545338,103990.0,103980.0,0.49819046]
[1750277591239,0.97739568,103990.0,103980.0,0.51045721]
[1750277591443,0.98701198,103990.0,103980.0,0.46934044]
[1750277591614,1.00497994,103990.0,103980.0,0.47895721]
[1750277591817,0.80303746,103990.0,103980.0,0.48857379]
[1750277592232,0.79342134,103990.0,103980.0,0.52007379]
[1750277592468,0.75622198,103990.0,103980.0,0.55227379]
[1750277592696,0.78380815,103990.0,103980.0,0.55227379]
[1750277592895,0.76583745,103990.0,103980.0,0.55227379]
[1750277593531,0.98701143,103990.0,103980.0,0.47895721]
[1750277594001,0.98574816,103990.0,103980.0,0.45010644]
[1750277594226,0.98574816,103990.0,103980.0,0.46934053]
[1750277594391,0.98574816,103990.0,103980.0,0.47895739]
[1750277594392,0.98575127,103990.0,103980.0,0.47895739]
[1750277594603,0.77545412,103990.0,103980.0,0.49819064]
[1750277595283,0.77545412,103990.0,103980.0,0.52829064]
[1750277595725,0.9677803,103990.0,103980.0,0.52829064]
[1750277595939,0.9773966,103990.0,103980.0,0.35715406]
[1750277596146,0.9773966,103990.0,103980.0,0.51867406]
[1750277596353,0.99537289,103990.0,103980.0,0.48857406]
[1750277596563,0.99537271,103990.0,103980.0,0.46934044]
[1750277596769,0.9773966,103990.0,103980.0,0.47895721]
[1750277597796,0.98577237,103990.0,103980.0,0.4789172]
[1750277598210,0.98577237,103990.0,103980.0,0.30782053]
[1750277598422,0.98577237,103990.0,103980.0,0.4789173]
[1750277598860,0.78382961,103990.0,103980.0,0.52003388]
[1750277599068,0.79344527,103990.0,103980.0,0.52003388]
[1750277599484,0.75622198,103990.0,103980.0,0.55133388]
[1750277599707,0.7754532,103990.0,103980.0,0.38985388]
[1750277599956,0.77545311,103990.0,103980.0,0.55133388]
[1750277600161,0.76583745,103990.0,103980.0,0.55133388]
[1750277600624,0.79468489,103990.0,103980.0,0.55133388]
[1750277601058,0.80430101,103990.0,103980.0,0.55133388]
[1750277601991,0.99662802,103990.0,103980.0,0.3802373]
[1750277602220,0.81269219,103990.0,103980.0,0.56095055]
[1750277602445,0.79468554,103990.0,103980.0,0.56095055]
[1750277603865,1.02807617,103990.0,103980.0,0.50080053]
[1750277604076,1.00502026,103990.0,103980.0,0.5104173]
[1750277604301,1.00502026,103990.0,103980.0,0.4789173]
[1750277604528,1.00502026,103990.0,103980.0,0.48853397]
[1750277604741,0.20196182,103980.0,103970.0,0.26268133]
[1750277604974,0.35923548,103970.0,103960.0,0.25163516]
[1750277605217,0.87095663,103970.0,103960.0,0.37967757]
[1750277605455,0.67859345,103970.0,103960.0,0.54111757]
[1750277605701,0.68821151,103970.0,103960.0,0.54111757]
[1750277605927,0.67859345,103970.0,103960.0,0.54111757]
[1750277606392,0.67859345,103970.0,103960.0,0.54411757]
[1750277606838,0.87095663,103970.0,103960.0,0.37505914]
[1750277607076,0.67859345,103970.0,103960.0,0.55693609]
[1750277608781,0.71516453,103970.0,103960.0,0.55693609]
[1750277609238,0.34,103970.0,103960.0,0.55693609]
[1750277609457,0.71516453,103970.0,103960.0,0.55693609]
[1750277610353,0.73439945,103970.0,103960.0,0.55693609]
[1750277610592,0.7632529,103970.0,103960.0,0.39549609]
[1750277610832,0.75363493,103970.0,103960.0,0.55693609]
[1750277611069,0.7632529,103970.0,103960.0,0.55693609]
[1750277611287,0.75363493,103970.0,103960.0,0.55693609]
[1750277611980,0.74401705,103970.0,103960.0,0.55693609]
[1750277612197,0.75363493,103970.0,103960.0,0.55693609]
[1750277612345,0.75363483,103970.0,103960.0,0.55693609]
[1750277612762,0.94599792,103970.0,103960.0,0.37625914]
[1750277613129,0.94599884,103970.0,103960.0,0.30324043]
[1750277613320,1.36542808,103970.0,103960.0,0.005]
[1750277613657,1.4155394,103970.0,103960.0,0.005]
[1750277613865,1.58369966,103970.0,103960.0,0.005]
[1750277614066,1.6058434,103970.0,103960.0,0.005]
[1750277614191,1.6058434,103970.0,103960.0,0.003]
[1750277614387,1.4454434,103970.0,103960.0,0.003]
[1750277614587,1.03026573,103970.0,103960.0,0.003]
[1750277614839,1.34402626,103970.0,103960.0,0.003]
[1750277615044,1.37402626,103970.0,103960.0,0.003]
[1750277615244,1.37502626,103970.0,103960.0,0.003]
[1750277615449,0.21161919,103960.0,103950.0,0.23087869]
[1750277615663,0.98118613,103960.0,103950.0,0.32712054]
[1750277615865,0.99080447,103960.0,103950.0,0.3367399]
[1750277616841,0.99080447,103960.0,103950.0,0.3377399]
[1750277617061,0.98118613,103960.0,103950.0,0.32812054]
[1750277617626,0.97156761,103960.0,103950.0,0.09724176]
[1750277617842,0.97156761,103960.0,103950.0,0.47032168]
[1750277618051,0.97156761,103960.0,103950.0,0.47994131]
[1750277618470,0.97156761,103960.0,103950.0,0.47032177]
[1750277618680,0.97156761,103960.0,103950.0,0.47994131]
[1750277618882,0.97156761,103960.0,103950.0,0.48956076]
[1750277619060,0.97156761,103960.0,103950.0,0.49918012]
[1750277619294,0.97156761,103960.0,103950.0,0.48956076]
[1750277619517,0.76956694,103960.0,103950.0,0.47994131]
[1750277619729,0.96194862,103960.0,103950.0,0.47994131]
[1750277620781,0.96194862,103960.0,103950.0,0.4799414]
[1750277621016,0.96194862,103960.0,103950.0,0.4799415]
[1750277621225,0.96194862,103960.0,103950.0,0.47032177]
[1750277621450,0.97156761,103960.0,103950.0,0.4799414]
[1750277621671,0.96194881,103960.0,103950.0,0.47032186]
[1750277621889,0.96194881,103960.0,103950.0,0.47994168]
[1750277622102,0.96194881,103960.0,103950.0,0.47032186]
[1750277622977,0.35924066,103940.0,103930.0,0.57038037]
[1750277623206,0.73440519,103940.0,103930.0,0.54004334]
[1750277623418,0.73440509,103940.0,103930.0,0.54004334]
[1750277623632,0.72478472,103940.0,103930.0,0.54004334]
[1750277624293,0.734405,103940.0,103930.0,0.54318495]
[1750277624494,0.74402547,103940.0,103930.0,0.54318495]
[1750277624720,0.734405,103940.0,103930.0,0.54318495]
[1750277625141,0.72478472,103940.0,103930.0,0.54318495]
[1750277625540,0.73440509,103940.0,103930.0,0.54318495]
[1750277625740,0.73440509,103940.0,103930.0,0.54818495]
[1750277625990,0.72478472,103940.0,103930.0,0.54818495]
[1750277626380,0.71516453,103940.0,103930.0,0.54818495]
[1750277626635,0.72478472,103940.0,103930.0,0.54818495]
[1750277626841,0.72478463,103940.0,103930.0,0.54818495]
[1750277627049,0.74402538,103940.0,103930.0,0.54818495]
[1750277627461,0.78635959,103940.0,103930.0,0.53856374]
[1750277627680,0.77673903,103940.0,103930.0,0.54818495]
[1750277627889,0.76711856,103940.0,103930.0,0.54818495]
[1750277628100,0.76692409,103940.0,103930.0,0.54818495]
[1750277628241,0.97858401,103940.0,103930.0,0.53856374]
[1750277628449,0.95934363,103940.0,103930.0,0.00814161]
[1750277628672,0.95934363,103940.0,103930.0,0.16950161]
[1750277628877,1.1849634,103940.0,103930.0,0.36193882]
[1750277629080,1.1849634,103940.0,103930.0,0.16950161]
[1750277629292,1.1849634,103940.0,103930.0,0.00814161]
[1750277629491,1.2451634,103940.0,103930.0,0.00314161]
[1750277629734,1.2451634,103940.0,103930.0,0.16454161]
[1750277629937,1.2451634,103940.0,103930.0,0.16750161]
[1750277630529,1.2451634,103940.0,103930.0,0.16450161]
[1750277630893,1.2451634,103940.0,103930.0,0.16650161]
[1750277631310,1.2451634,103940.0,103930.0,0.16450161]
[1750277631715,1.2451634,103940.0,103930.0,0.00314161]
[1750277632112,1.2451634,103940.0,103930.0,0.00014161]
[1750277632539,1.2451634,103940.0,103930.0,0.00114161]
[1750277634933,1.2740754,103940.0,103930.0,0.00114161]
[1750277639043,0.88457125,103940.0,103930.0,0.24472188]
[1750277639268,0.3422058,103940.0,103930.0,0.54394495]
[1750277639652,0.6822058,103940.0,103930.0,0.54394495]
[1750277639867,0.64949215,103940.0,103930.0,0.54394495]
[1750277640698,0.64949215,103940.0,103930.0,0.38258495]
[1750277640923,0.64949215,103940.0,103930.0,0.54394495]
[1750277643352,0.65911234,103940.0,103930.0,0.54394495]
[1750277643553,0.64949215,103940.0,103930.0,0.54394495]
[1750277644309,0.64949215,103940.0,103930.0,0.84154495]
[1750277644496,0.0091,103940.0,103930.0,1.085532]
[1750277644655,0.0091,103940.0,103930.0,1.11910399]
[1750277644861,0.14918702,103960.0,103950.0,0.28195909]
[1750277645095,0.00961732,103970.0,103960.0,0.28193781]
[1750277645297,0.31000947,103970.0,103960.0,0.53949957]
[1750277645498,0.31000947,103970.0,103960.0,0.37817957]
[1750277645756,0.66924457,103970.0,103960.0,0.53949957]
[1750277646788,0.66924457,103970.0,103960.0,0.54249957]
[1750277646996,0.67886245,103970.0,103960.0,0.54249957]
[1750277647196,0.66924457,103970.0,103960.0,0.54249957]
[1750277647402,0.66924457,103970.0,103960.0,0.54449957]
[1750277647607,0.66924457,103970.0,103960.0,0.38317957]
[1750277647809,0.68848014,103970.0,103960.0,0.54449957]
[1750277648600,0.67886217,103970.0,103960.0,0.54449957]
[1750277648802,0.88084415,103970.0,103960.0,0.46452243]
[1750277649009,1.17161889,103970.0,103960.0,0.005]
[1750277649209,1.1523836,103970.0,103960.0,0.16628]
[1750277649661,1.1523836,103970.0,103960.0,0.005]
[1750277649874,1.1523836,103970.0,103960.0,0.16628]
[1750277650206,0.85199145,103970.0,103960.0,0.35666168]
[1750277650409,0.85199145,103970.0,103960.0,0.16428]
[1750277650621,0.85199145,103970.0,103950.0,0.287259]
[1750277650622,0.34,103960.0,103950.0,0.37533117]
[1750277650853,0.85201124,103960.0,103950.0,0.46195376]
[1750277651061,0.86163032,103960.0,103950.0,0.45233431]
[1750277651724,0.8520118,103960.0,103950.0,0.45233431]
[1750277652423,0.65962984,103960.0,103950.0,0.31329312]
[1750277652636,0.86163051,103960.0,103950.0,0.31329312]
[1750277652850,0.86163051,103960.0,103950.0,0.29405431]
[1750277653312,0.86163051,103960.0,103950.0,0.29605431]
[1750277653745,0.85201171,103960.0,103950.0,0.2960545]
[1750277653958,1.14278497,103960.0,103950.0,0.005]
[1750277654386,1.36582497,103960.0,103950.0,0.005]
[1750277656231,1.30402497,103960.0,103950.0,0.005]
[1750277656440,1.33562497,103960.0,103950.0,0.005]
[1750277658582,1.30402497,103960.0,103950.0,0.005]
[1750277660108,0.65962929,103960.0,103950.0,0.4631549]
[1750277660324,0.66924818,103960.0,103950.0,0.4631549]
[1750277661407,0.87124894,103960.0,103950.0,0.4631549]
[1750277662322,0.87124894,103960.0,103950.0,0.38650085]
[1750277662770,1.17164109,103960.0,103950.0,0.38650085]
[1750277663746,1.17164109,103960.0,103950.0,0.54770085]
[1750277664203,1.17164109,103960.0,103950.0,0.38650085]
[1750277664425,1.17164109,103960.0,103950.0,0.16524176]
[1750277664647,1.16202266,103960.0,103950.0,0.16524176]
[1750277664948,1.15240395,103960.0,103950.0,0.0373]
[1750277665166,1.15240395,103960.0,103950.0,0.005]
[1750277665592,1.18250395,103960.0,103950.0,0.005]
[1750277665802,1.18250395,103960.0,103950.0,0.003]
[1750277666231,0.54202001,103950.0,103940.0,0.0312]
[1750277666456,1.14280431,103950.0,103940.0,0.0312]
[1750277666890,1.14280431,103950.0,103940.0,0.0613]
[1750277667595,1.14280431,103950.0,103940.0,0.0633]
[1750277668250,1.14280431,103950.0,103940.0,0.002]
[1750277668715,1.14280431,103950.0,103940.0,0.003]
[1750277669342,1.14280431,103950.0,103940.0,0.002]
[1750277669559,1.14280431,103950.0,103930.0,0.73342187]
[1750277669560,0.56127992,103940.0,103930.0,0.73342196]
[1750277669772,0.88091365,103940.0,103930.0,0.54168511]
[1750277669991,0.87129355,103940.0,103930.0,0.52244214]
[1750277670410,0.87129355,103940.0,103930.0,0.51282047]
[1750277670625,0.87129355,103940.0,103930.0,0.52244214]
[1750277670834,0.87129355,103940.0,103930.0,0.52444214]
[1750277671036,0.87129355,103940.0,103930.0,0.53406372]
[1750277671249,0.87129355,103940.0,103930.0,0.52444233]
[1750277671432,0.86167318,103940.0,103930.0,0.54468558]
[1750277671897,0.86167318,103940.0,103930.0,0.53506391]
[1750277672338,0.86167318,103940.0,103930.0,0.5446854]
[1750277672599,0.86167318,103940.0,103930.0,0.53506391]
[1750277672819,0.85205253,103940.0,103930.0,0.52544233]
[1750277673025,0.85205253,103940.0,103930.0,0.52544244]
[1750277673229,0.85205253,103940.0,103930.0,0.54468587]
[1750277673637,0.85205253,103940.0,103930.0,0.55430745]
[1750277673846,0.85205253,103940.0,103930.0,0.54468587]
[1750277674054,0.55166038,103940.0,103930.0,0.55430745]